bitfinex-derivatives/quotes_ETHF0:USTF0_20241005
["timestamp","ask_amount","ask_price","bid_price","bid_amount"]
[1728149996961,5.92832,2411.0,2410.9,2.67649125]
[1728149997359,5.92832,2411.0,2410.9,3.91073577]
[1728149997753,5.92832,2411.0,2410.9,4.45396545]
[1728149998355,5.92832,2411.0,2410.9,2.86320451]
[1728149998656,5.92832,2411.0,2410.9,4.4539069]
[1728149999157,5.92832,2411.0,2410.9,3.91058749]
[1728150000755,5.92832,2411.0,2410.9,2.82530239]
[1728150000955,5.92832,2411.0,2410.9,3.91056994]
[1728150001357,5.92832,2411.0,2410.9,2.31986755]
[1728150001857,5.92832,2411.0,2410.9,3.91051794]
[1728150002753,5.92832,2411.0,2410.9,2.31986755]
[1728150004454,5.92832,2411.0,2410.9,3.91065344]
[1728150005059,5.92832,2411.0,2410.9,2.82538589]
[1728150005254,5.92832,2411.0,2410.9,4.4539904]
[1728150005255,1.49,2411.0,2410.9,4.4539904]
[1728150006051,1.49,2411.0,2410.9,2.82538589]
[1728150006261,1.49,2411.0,2410.9,4.45316545]
[1728150006559,1.49,2411.0,2410.9,2.82538589]
[1728150006765,1.49,2411.0,2410.9,2.8251101]
[1728150006958,4.6978,2411.1,2410.9,3.1154401]
[1728150007154,4.6978,2411.1,2411.0,3.21824705]
[1728150007660,1.49,2411.1,2411.0,3.21824705]
[1728150009358,1.49,2411.1,2411.0,1.5905101]
[1728150009858,1.49,2411.1,2411.0,3.2181848]
[1728150010255,1.49,2411.1,2411.0,1.5905101]
[1728150010662,1.49,2411.1,2411.0,3.21854241]
[1728150010959,1.49,2411.1,2411.0,1.5905101]
[1728150011167,1.49,2411.1,2411.0,3.21857033]
[1728150011555,1.49,2411.1,2411.0,3.21882508]
[1728150012862,1.7803,2411.1,2411.0,3.21882508]
[1728150016762,1.7803,2411.1,2411.0,2.676195]
[1728150016963,8.845,2411.1,2410.9,2.31997723]
[1728150017163,8.845,2411.1,2410.9,1.91517723]
[1728150017164,2.17742,2411.0,2410.9,1.91517723]
[1728150017482,2.58102,2411.0,2410.9,1.08537723]
[1728150017768,6.72902,2411.0,2410.9,1.08537723]
[1728150018564,5.92832,2411.0,2410.9,1.47497723]
[1728150018765,5.92832,2411.0,2410.9,3.06598894]
[1728150018970,5.92832,2411.0,2410.9,3.06595103]
[1728150019168,4.43832,2411.0,2410.9,3.06595103]
[1728150019365,5.92832,2411.0,2410.9,3.60858111]
[1728150019571,0.29032,2411.0,2410.9,1.9805738]
[1728150019871,0.29032,2411.0,2410.9,4.15166699]
[1728150020976,0.29032,2411.0,2410.9,1.9805738]
[1728150021271,0.2903,2411.2,2410.9,7.62337609]
[1728150021468,0.2903,2411.2,2411.1,1.62782402]
[1728150021774,0.2903,2411.2,2411.1,3.21879782]
[1728150021973,0.2903,2411.2,2411.1,3.61469782]
[1728150024076,0.2903,2411.2,2411.1,3.61384809]
[1728150024472,1.7803,2411.2,2411.1,3.61384809]
[1728150025675,1.49,2411.2,2411.1,3.61384809]
[1728150026185,1.78029,2411.2,2411.1,3.61384809]
[1728150027680,1.78029,2411.2,2411.1,0.3959]
[1728150027878,1.78029,2411.2,2411.1,1.48046413]
[1728150028179,1.78029,2411.2,2411.1,0.3959]
[1728150028583,1.78029,2411.2,2411.1,1.48046413]
[1728150029079,1.78029,2411.2,2411.1,0.3959]
[1728150029585,2.43507,2411.5,2411.1,7.21706371]
[1728150029586,0.29028,2411.3,2411.1,7.21706371]
[1728150029879,0.29027,2411.4,2411.2,3.47356071]
[1728150030084,0.29027,2411.4,2411.2,1.88436413]
[1728150030388,0.29028,2411.3,2411.2,1.88436413]
[1728150032681,0.29028,2411.3,2411.2,0.7998]
[1728150033087,0.29028,2411.3,2411.2,1.88436413]
[1728150033581,0.29028,2411.3,2411.2,0.7998]
[1728150033988,0.29028,2411.3,2411.2,1.88436413]
[1728150034385,1.8892,2411.4,2411.1,1.48046413]
[1728150034586,0.2903,2411.1,2411.0,0.4045]
[1728150034791,0.2903,2411.1,2411.0,2.67311207]
[1728150035085,1.5342,2411.1,2411.0,1.08425497]
[1728150035475,5.6814,2411.1,2411.0,1.08425497]
[1728150037279,1.2439,2411.1,2410.9,1.08425497]
[1728150037484,1.78032,2411.0,2410.9,1.08425497]
[1728150037688,1.78032,2411.0,2410.9,2.67370606]
[1728150038377,1.78032,2411.0,2410.9,1.08425497]
[1728150038992,1.78032,2411.0,2410.9,2.67375762]
[1728150039190,5.92832,2411.0,2410.9,1.08425497]
[1728150039390,0.29033,2410.9,2410.8,1.08425497]
[1728150039586,0.29033,2410.9,2410.8,2.6739177]
[1728150040391,0.29034,2410.8,2410.7,1.08425497]
[1728150040593,0.29034,2410.8,2410.7,2.67412264]
[1728150040594,6.34084,2410.8,2410.7,2.67412264]
[1728150040787,6.34084,2410.8,2410.7,1.08425497]
[1728150041089,6.0505,2410.8,2410.6,1.08425497]
[1728150041292,1.10445,2410.7,2410.6,1.08476933]
[1728150041594,1.10445,2410.7,2410.6,2.67462043]
[1728150043595,1.10445,2410.7,2410.6,2.67407418]
[1728150044094,1.10445,2410.7,2410.6,2.67409596]
[1728150044295,1.10445,2410.7,2410.6,1.08476933]
[1728150046889,0.29036,2410.6,2410.5,1.08476933]
[1728150047094,1.78036,2410.6,2410.5,2.67374087]
[1728150049103,1.78036,2410.6,2410.5,1.08476933]
[1728150050299,0.29038,2410.5,2410.4,1.08476933]
[1728150050602,0.29039,2410.4,2410.3,1.47786933]
[1728150050799,1.78039,2410.4,2410.3,1.47786933]
[1728150051496,1.78039,2410.4,2410.3,0.3931]
[1728150056695,1.49,2410.4,2410.2,5.36674694]
[1728150056904,1.49,2410.4,2410.2,4.94944694]
[1728150056905,0.2904,2410.3,2410.2,4.94944694]
[1728150057098,1.076,2410.3,2410.2,4.55984694]
[1728150057593,0.6766,2410.3,2410.2,4.55984694]
[1728150062802,0.2904,2410.3,2410.2,4.55984694]
[1728150066707,0.29041,2410.2,2410.1,0.827]
[1728150066902,6.75801,2410.2,2410.1,0.827]
[1728150067206,0.29044,2410.0,2409.9,0.4155]
[1728150067395,1.78044,2410.0,2409.9,1.2108]
[1728150072801,0.2904,2410.3,2409.9,1.2108]
[1728150073003,0.883,2410.3,2409.9,1.2108]
[1728150073195,1.49,2410.4,2410.1,0.29041]
[1728150073400,1.49,2410.4,2410.2,0.3971]
[1728150073613,1.49,2410.4,2410.3,0.7913]
[1728150074207,1.78039,2410.4,2410.3,0.7913]
[1728150079416,0.4142,2410.7,2410.3,0.7913]
[1728150079604,1.49,2410.6,2410.3,0.7913]
[1728150079806,1.49,2410.6,2410.3,2.16645933]
[1728150080120,1.49,2410.6,2410.4,1.08476933]
[1728150080307,1.49,2410.6,2410.3,2.16646933]
[1728150080507,1.49,2410.6,2410.4,1.08476933]
[1728150081110,1.49,2410.6,2410.5,0.3896]
[1728150082019,1.78036,2410.6,2410.5,0.3896]
[1728150085718,0.29038,2410.5,2410.3,1.87606933]
[1728150086018,1.78038,2410.5,2410.3,1.87606933]
[1728150086609,1.49,2410.5,2410.3,1.87606933]
[1728150091324,1.49,2410.5,2410.4,1.08476933]
[1728150102222,1.49,2410.5,2410.4,1.49106933]
[1728150103423,1.78038,2410.5,2410.4,1.49106933]
[1728150104024,0.3907,2410.8,2410.4,3.6208123]
[1728150104223,1.49,2410.7,2410.6,1.08419656]
[1728150105131,1.78035,2410.7,2410.6,1.08419656]
[1728150106426,1.49,2410.7,2410.6,1.08419656]
[1728150110637,1.78035,2410.7,2410.6,1.08419656]
[1728150110936,2.17765,2410.7,2410.5,1.08419656]
[1728150111129,1.49,2410.6,2410.5,1.08419656]
[1728150111435,1.49,2410.6,2410.5,2.68380887]
[1728150113037,1.49,2410.6,2410.5,1.08419656]
[1728150113433,1.49,2410.6,2410.5,2.68384112]
[1728150113735,1.49,2410.6,2410.5,2.97422112]
[1728150115435,1.49,2410.6,2410.5,3.51621198]
[1728150116748,1.49,2410.6,2410.5,3.51624643]
[1728150117242,1.78036,2410.6,2410.5,3.22586643]
[1728150117636,1.49,2410.6,2410.5,3.22586643]
[1728150118842,1.49,2410.6,2410.5,3.51624643]
[1728150120341,1.49,2410.6,2410.5,1.89005901]
[1728150120737,1.49,2410.6,2410.5,0.29038]
[1728150121043,1.49,2410.6,2410.5,1.89110229]
[1728150122338,2.17766,2410.7,2410.5,4.06219548]
[1728150122539,1.49,2410.7,2410.6,3.65238177]
[1728150124049,1.78035,2410.7,2410.6,3.65238177]
[1728150125257,1.49,2410.7,2410.6,3.65343833]
[1728150125750,1.78035,2410.7,2410.6,3.65343833]
[1728150134253,1.78035,2410.7,2410.6,3.23023833]
[1728150135156,1.78035,2410.7,2410.6,3.22869947]
[1728150136849,1.78035,2410.7,2410.6,1.60023999]
[1728150137255,3.90724,2410.9,2410.6,1.60023999]
[1728150137559,0.69944,2410.9,2410.8,1.08492918]
[1728150137960,1.78032,2411.0,2410.8,3.22763311]
[1728150138162,1.49,2411.0,2410.9,2.68496374]
[1728150138456,1.78032,2411.0,2410.9,2.68489632]
[1728150138760,2.20051,2411.1,2410.9,3.22744215]
[1728150138954,2.20051,2411.1,2411.0,3.2269017]
[1728150140054,2.20051,2411.1,2411.0,3.2263057]
[1728150140359,2.20051,2411.1,2411.0,2.68355395]
[1728150140656,2.20051,2411.1,2411.0,3.06975395]
[1728150142259,2.20051,2411.1,2411.0,1.47030157]
[1728150142450,2.20051,2411.1,2411.0,3.06912413]
[1728150142650,3.5954,2411.2,2411.0,3.06912413]
[1728150142651,0.2903,2411.2,2411.0,3.06912413]
[1728150142855,0.29029,2411.3,2411.1,3.49056197]
[1728150143059,0.29029,2411.3,2411.1,1.89200157]
[1728150143353,0.29029,2411.3,2411.2,1.08410157]
[1728150145257,1.9096,2411.4,2411.1,1.89200157]
[1728150145461,0.29029,2411.3,2411.2,1.08410157]
[1728150146264,0.29029,2411.3,2411.1,1.89200157]
[1728150146762,0.29029,2411.3,2411.2,1.08410157]
[1728150149859,1.49,2411.5,2411.2,1.08410157]
[1728150150064,1.78026,2411.5,2411.2,1.08410157]
[1728150150265,1.78026,2411.5,2411.3,0.4171]
[1728150150562,0.29027,2411.4,2411.3,0.4171]
[1728150150765,1.49,2411.5,2411.3,0.4171]
[1728150150964,1.78026,2411.5,2411.4,0.4052]
[1728150154566,3.9951,2411.7,2411.4,0.4052]
[1728150154768,1.78026,2411.5,2411.4,0.4052]
[1728150160880,1.78026,2411.5,2411.3,0.4171]
[1728150163170,1.78027,2411.4,2411.3,0.4171]
[1728150163380,1.8947,2411.4,2411.1,0.4128]
[1728150163569,2.2993,2411.3,2411.1,0.4128]
[1728150164272,0.29029,2411.2,2411.1,0.4128]
[1728150165586,0.2903,2411.1,2411.0,0.3971]
[1728150165876,0.23648032,2411.1,2411.0,0.3971]
[1728150166179,0.52678032,2411.1,2411.0,0.3971]
[1728150169480,0.52678032,2411.1,2411.0,3.07407151]
[1728150169879,0.52678032,2411.1,2411.0,1.48120157]
[1728150170283,0.52678032,2411.1,2411.0,3.07421315]
[1728150172688,0.52678032,2411.1,2411.0,1.99011158]
[1728150172981,0.52678032,2411.1,2411.0,3.07192918]
[1728150173381,0.52678032,2411.1,2411.0,3.6169649]
[1728150173686,0.52678032,2411.1,2411.0,1.99011158]
[1728150173888,0.52678032,2411.1,2411.0,1.99017155]
[1728150174283,0.52678032,2411.1,2411.0,3.61702487]
[1728150175185,6.16398032,2411.1,2411.0,1.08211232]
[1728150175391,0.29032,2411.0,2410.9,1.08211232]
[1728150175592,0.70212,2411.0,2410.8,1.88421232]
[1728150176589,0.70212,2411.0,2410.9,1.08211232]
[1728150177891,0.4118,2411.0,2410.9,1.08211232]
[1728150179299,0.4118,2411.0,2410.9,2.67671722]
[1728150180297,0.70212,2411.0,2410.9,2.67671722]
[1728150180498,6.34012,2411.0,2410.9,1.08211232]
[1728150180897,6.0498,2411.0,2410.8,1.08211232]
[1728150181098,0.68513,2410.9,2410.8,1.08211232]
[1728150181304,0.68513,2410.9,2410.8,3.22176671]
[1728150182207,0.68513,2410.9,2410.8,3.22207305]
[1728150186810,0.68513,2410.9,2410.8,3.22284988]
[1728150188502,4.83313,2410.9,2410.8,3.22284988]
[1728150189009,0.68513,2410.9,2410.8,3.22284988]
[1728150189999,0.68513,2410.9,2410.8,1.59599656]
[1728150190200,0.68513,2410.9,2410.8,3.22284988]
[1728150190401,0.68513,2410.9,2410.8,2.6797433]
[1728150191711,0.68513,2410.9,2410.8,2.67870419]
[1728150192210,0.68513,2410.9,2410.8,2.67850171]
[1728150194008,0.68513,2410.9,2410.8,1.08354426]
[1728150194409,1.56613,2410.9,2410.8,1.08354426]
[1728150194712,1.17133,2410.9,2410.8,1.08354426]
[1728150196620,1.17133,2410.9,2410.8,1.49684426]
[1728150197220,0.881,2410.9,2410.8,1.49684426]
[1728150197410,2.19212,2411.0,2410.8,1.49684426]
[1728150197611,3.84098032,2411.1,2410.9,1.48344426]
[1728150197612,3.2078,2411.1,2410.9,1.48344426]
[1728150197813,3.2078,2411.1,2411.0,1.08354426]
[1728150200620,3.4981,2411.2,2411.0,1.08354426]
[1728150201019,0.2903,2411.1,2411.0,1.08354426]
[1728150201412,1.7803,2411.1,2411.0,1.08354426]
[1728150210925,1.7803,2411.1,2411.0,2.67887205]
[1728150211223,1.7803,2411.1,2411.0,1.08354426]
[1728150211418,1.7803,2411.1,2411.0,2.67898768]
[1728150212027,1.7803,2411.1,2411.0,1.08354426]
[1728150212525,1.7803,2411.1,2411.0,2.67909477]
[1728150213928,2.5952,2411.1,2411.0,1.08354426]
[1728150214824,2.5952,2411.1,2411.0,2.67944101]
[1728150215135,5.803,2411.1,2411.0,2.67944101]
[1728150215422,5.803,2411.1,2411.0,4.30629433]
[1728150215728,5.803,2411.1,2411.0,3.22275007]
[1728150216318,5.803,2411.1,2411.0,3.22278319]
[1728150218733,2.5952,2411.1,2411.0,3.22278319]
[1728150219630,2.1879,2411.1,2411.0,3.22278319]
[1728150220432,2.1879,2411.1,2411.0,1.59592987]
[1728150221334,2.1879,2411.1,2411.0,1.60982166]
[1728150221534,2.1879,2411.1,2411.0,3.23701395]
[1728150222935,2.1879,2411.1,2411.0,3.23701291]
[1728150223935,1.7803,2411.1,2411.0,3.23701291]
[1728150224832,1.7803,2411.1,2411.0,1.60982166]
[1728150225338,0.2903,2411.1,2411.0,1.60982166]
[1728150226135,0.2903,2411.1,2411.0,1.60989338]
[1728150228633,0.2903,2411.1,2411.0,3.23712121]
[1728150229040,0.2903,2411.1,2411.0,1.60989338]
[1728150229738,0.2903,2411.1,2411.0,3.237081]
[1728150231131,0.2903,2411.1,2411.0,3.23711069]
[1728150235846,0.2903,2411.1,2411.0,1.62718762]
[1728150236143,0.2903,2411.1,2411.0,3.23724505]
[1728150236951,0.2903,2411.1,2411.0,1.61005743]
[1728150237335,0.2903,2411.1,2411.0,3.78115062]
[1728150237642,0.2903,2411.1,2411.0,1.61005743]
[1728150237839,0.2903,2411.1,2411.0,3.78115062]
[1728150240541,0.2903,2411.1,2411.0,3.23767546]
[1728150240542,7.6453,2411.1,2411.0,3.23767546]
[1728150243042,3.4981,2411.1,2411.0,3.23767546]
[1728150244251,3.4981,2411.1,2411.0,3.23845836]
[1728150245247,0.2903,2411.1,2411.0,1.61084033]
[1728150245449,0.2903,2411.1,2411.0,4.18173352]
[1728150245649,0.2903,2411.1,2411.0,7.40295107]
[1728150246051,0.2903,2411.1,2411.0,4.18173352]
[1728150246452,0.2903,2411.1,2411.0,7.40294829]
[1728150246652,0.2903,2411.1,2411.0,7.40291644]
[1728150249555,0.2903,2411.1,2411.0,7.40256992]
[1728150249751,0.2903,2411.1,2411.0,7.40252417]
[1728150251949,0.2903,2411.1,2411.0,3.63726562]
[1728150252149,0.2903,2411.1,2411.0,2.01034366]
[1728150252346,0.2903,2411.1,2411.0,3.63699273]
[1728150253663,0.2903,2411.1,2411.0,2.01034366]
[1728150254053,0.2903,2411.1,2411.0,2.013922]
[1728150256264,0.2903,2411.1,2411.0,3.63883399]
[1728150256651,0.2903,2411.1,2411.0,2.013922]
[1728150259861,0.2903,2411.1,2411.0,3.63930067]
[1728150260056,0.2903,2411.1,2411.0,7.41455223]
[1728150261361,0.2903,2411.1,2411.0,4.18501519]
[1728150261655,0.2903,2411.1,2411.0,7.41459762]
[1728150264064,0.2903,2411.1,2411.0,7.41539714]
[1728150264862,0.2903,2411.1,2411.0,7.41553181]
[1728150267164,0.2903,2411.1,2411.0,4.18577273]
[1728150267565,0.2903,2411.1,2411.0,2.01467954]
[1728150268266,1.7803,2411.1,2411.0,3.240531]
[1728150268865,1.7803,2411.1,2411.0,3.24087862]
[1728150269265,9.1353,2411.1,2411.0,3.24087862]
[1728150270671,9.1353,2411.1,2411.0,1.08401564]
[1728150270868,14.845,2411.1,2410.9,1.08401564]
[1728150271074,5.24972,2411.0,2410.9,1.08401564]
[1728150271472,11.24972,2411.0,2410.9,1.08401564]
[1728150271879,11.24972,2411.0,2410.8,1.62565146]
[1728150271880,0.29033,2410.9,2410.8,1.08401564]
[1728150272081,4.552,2410.9,2410.8,1.08401564]
[1728150272280,0.29034,2410.8,2410.7,1.08401564]
[1728150272489,8.52514,2410.8,2410.7,1.08401564]
[1728150273278,8.52514,2410.8,2410.6,1.62565146]
[1728150273279,8.2348,2410.8,2410.6,1.08401564]
[1728150273484,1.78035,2410.7,2410.6,1.08401564]
[1728150273782,2.20375,2410.7,2410.6,1.61485031]
[1728150273986,2.20375,2410.7,2410.6,2.69855933]
[1728150274492,2.20375,2410.7,2410.6,1.08355364]
[1728150275279,2.20375,2410.7,2410.6,1.61460176]
[1728150275486,2.20375,2410.7,2410.6,2.6981869]
[1728150276887,2.20375,2410.7,2410.6,1.08358514]
[1728150276888,6.35175,2410.7,2410.6,1.08358514]
[1728150277088,2.20375,2410.7,2410.6,1.08358514]
[1728150277990,2.20375,2410.7,2410.5,1.08358514]
[1728150277991,6.0614,2410.7,2410.5,1.08358514]
[1728150278184,0.69606,2410.6,2410.5,1.08358514]
[1728150278390,0.69606,2410.6,2410.5,2.69744398]
[1728150278591,0.69606,2410.6,2410.5,1.08358514]
[1728150281493,0.69606,2410.6,2410.4,1.87628514]
[1728150281494,0.29038,2410.5,2410.4,1.87628514]
[1728150281694,1.78038,2410.5,2410.4,1.87628514]
[1728150281999,4.6978,2410.5,2410.2,1.49808514]
[1728150282192,0.2904,2410.3,2410.2,1.49808514]
[1728150282389,1.1704,2410.3,2410.2,1.49808514]
[1728150283285,0.4057,2410.6,2410.2,1.49808514]
[1728150283481,1.16938,2410.5,2410.3,1.08358514]
[1728150283687,1.16938,2410.5,2410.4,0.4277]
[1728150283891,1.16938,2410.5,2410.4,0.8351]
[1728150284391,0.879,2410.5,2410.4,0.8351]
[1728150284593,1.78037,2410.6,2410.4,0.8351]
[1728150284594,1.49,2410.6,2410.4,0.8351]
[1728150284786,0.29038,2410.5,2410.4,0.8351]
[1728150286386,1.78038,2410.5,2410.4,0.8351]
[1728150289388,0.29038,2410.5,2410.4,0.8351]
[1728150289701,2.65937,2410.6,2410.4,0.8351]
[1728150289897,2.65936,2410.6,2410.5,0.3868]
[1728150298603,1.78036,2410.6,2410.5,0.3868]
[1728150300503,0.29036,2410.6,2410.5,0.3868]
[1728150300807,1.875,2410.9,2410.5,8.72000968]
[1728150301011,0.29034,2410.8,2410.6,1.08358514]
[1728150301503,0.29034,2410.8,2410.7,0.3934]
[1728150307114,0.29034,2410.8,2410.7,1.47698514]
[1728150307911,0.29034,2410.8,2410.7,3.08845442]
[1728150308309,0.29034,2410.8,2410.7,3.08852263]
[1728150308612,0.29034,2410.8,2410.7,3.08865793]
[1728150310011,0.29034,2410.8,2410.7,2.00507279]
[1728150310612,0.29034,2410.8,2410.7,3.63072425]
[1728150310914,0.29034,2410.8,2410.7,2.00507279]
[1728150311217,0.29034,2410.8,2410.7,3.08690589]
[1728150311405,0.29034,2410.8,2410.7,4.71255735]
[1728150311602,0.29034,2410.8,2410.7,3.63072425]
[1728150312213,0.29034,2410.8,2410.7,3.08707718]
[1728150312403,0.29034,2410.8,2410.7,3.63072425]
[1728150313320,0.29034,2410.8,2410.7,1.47556066]
[1728150313609,0.68614,2410.8,2410.7,1.47556066]
[1728150314808,0.68614,2410.8,2410.7,3.0884259]
[1728150315209,0.68614,2410.8,2410.7,0.3934]
[1728150315410,0.68614,2410.8,2410.7,3.08959011]
[1728150315613,1.8858,2410.8,2410.6,1.08276688]
[1728150315917,1.13115,2410.7,2410.6,1.08276688]
[1728150326016,0.8408,2410.7,2410.5,1.49196688]
[1728150326325,1.78036,2410.6,2410.5,1.49196688]
[1728150326522,1.78036,2410.6,2410.5,3.10630508]
[1728150330521,1.78036,2410.6,2410.5,3.64768852]
[1728150331027,1.78036,2410.6,2410.5,2.0235382]
[1728150331527,1.78036,2410.6,2410.5,3.64768852]
[1728150331729,1.78036,2410.6,2410.5,2.0235382]
[1728150332330,1.78036,2410.6,2410.5,3.64768852]
[1728150332527,1.78036,2410.6,2410.5,2.0235382]
[1728150332729,1.78036,2410.6,2410.5,3.64768852]
[1728150335519,1.78036,2410.6,2410.5,3.64887237]
[1728150335919,0.29036,2410.7,2410.5,4.06867237]
[1728150336126,1.16935,2410.7,2410.6,1.08420232]
[1728150336428,1.16935,2410.7,2410.6,2.69972906]
[1728150340332,1.16935,2410.7,2410.6,2.69994293]
[1728150347439,1.16935,2410.7,2410.6,2.70047419]
[1728150349342,1.16935,2410.7,2410.6,2.70101975]
[1728150349545,1.16935,2410.7,2410.6,1.61627187]
[1728150350139,1.16935,2410.7,2410.6,2.70103168]
[1728150352047,1.16935,2410.7,2410.6,3.24042219]
[1728150352346,1.16935,2410.7,2410.6,2.70112687]
[1728150352941,1.98485,2410.7,2410.6,2.70112687]
[1728150353543,6.13285,2410.7,2410.6,1.084855]
[1728150353747,0.29036,2410.6,2410.5,1.084855]
[1728150353941,5.92836,2410.6,2410.5,1.084855]
[1728150354142,11.638,2410.6,2410.4,1.084855]
[1728150354342,11.638,2410.6,2410.3,1.62415032]
[1728150354343,0.29039,2410.4,2410.3,1.084855]
[1728150354543,1.78039,2410.4,2410.3,1.084855]
[1728150354747,0.2904,2410.3,2410.2,1.496055]
[1728150354943,0.2904,2410.3,2410.2,3.11320031]
[1728150356245,0.2904,2410.3,2410.2,3.11294086]
[1728150357746,3.2078,2410.5,2410.2,9.29103618]
[1728150357942,0.29038,2410.5,2410.4,1.62415032]
[1728150358141,0.29038,2410.5,2410.4,3.24103618]
[1728150363149,0.29038,2410.5,2410.4,3.24078996]
[1728150367650,0.29038,2410.5,2410.4,3.65908996]
[1728150369548,0.29038,2410.5,2410.4,3.65880129]
[1728150373356,0.29038,2410.5,2410.4,3.11948427]
[1728150373757,0.29038,2410.5,2410.4,3.65880129]
[1728150374857,0.29038,2410.5,2410.4,3.11944106]
[1728150375160,2.65837,2410.6,2410.4,3.65880129]
[1728150375361,2.65837,2410.6,2410.5,1.47699871]
[1728150375664,2.65837,2410.6,2410.5,1.88549871]
[1728150378466,2.65837,2410.6,2410.5,0.8007]
[1728150378666,2.65837,2410.6,2410.5,1.88549871]
[1728150379565,1.78037,2410.6,2410.5,1.88549871]
[1728150384465,1.78037,2410.6,2410.5,3.50230513]
[1728150384668,1.78037,2410.6,2410.5,1.88549871]
[1728150386566,1.78037,2410.6,2410.5,3.50235717]
[1728150387160,1.78037,2410.6,2410.5,1.88549871]
[1728150387660,1.78037,2410.6,2410.5,3.50251175]
[1728150387872,1.78037,2410.6,2410.5,1.88549871]
[1728150388867,4.98817,2410.6,2410.5,1.88549871]
[1728150389060,4.98817,2410.6,2410.4,1.08479871]
[1728150389061,0.29038,2410.5,2410.4,1.08479871]
[1728150389271,2.61238,2410.5,2410.4,1.08479871]
[1728150389566,3.00008,2410.5,2410.4,1.08479871]
[1728150390375,0.29039,2410.4,2410.3,1.08479871]
[1728150390571,0.29039,2410.4,2410.1,1.08479871]
[1728150390572,4.1488,2410.4,2410.1,1.08479871]
[1728150390870,3.49821,2410.2,2410.1,1.08479871]
[1728150391071,4.37621,2410.2,2410.1,2.70297292]
[1728150391270,8.94881,2410.2,2410.1,1.08479871]
[1728150391874,8.94881,2410.2,2410.0,2.70894903]
[1728150391875,8.6584,2410.2,2410.0,2.70894903]
[1728150392062,2.56962,2410.1,2410.0,1.08479871]
[1728150392466,2.56962,2410.1,2410.0,2.70208702]
[1728150392774,2.56962,2410.1,2410.0,1.08479871]
[1728150394364,2.56962,2410.1,2410.0,2.7016622]
[1728150394569,2.56962,2410.1,2410.0,1.08479871]
[1728150394800,2.56962,2410.1,2410.0,2.70179532]
[1728150394967,2.56962,2410.1,2410.0,1.08479871]
[1728150395476,0.29044,2410.0,2409.9,1.08479871]
[1728150395677,1.49,2410.0,2409.8,1.08479871]
[1728150395875,0.70765,2409.9,2409.8,1.08479871]
[1728150397872,0.29046,2409.8,2409.7,1.49159871]
[1728150398072,1.78046,2409.8,2409.7,3.64768545]
[1728150398272,1.78046,2409.8,2409.7,3.10852901]
[1728150399180,1.78046,2409.8,2409.7,1.49179388]
[1728150399982,5.6396,2409.8,2409.6,1.49009388]
[1728150400279,3.625,2409.9,2409.6,1.08499388]
[1728150400280,3.44227,2409.7,2409.6,1.08499388]
[1728150401177,3.44227,2409.7,2409.5,1.47799388]
[1728150401476,0.29049,2409.6,2409.5,1.08499388]
[1728150401678,0.69339,2409.6,2409.4,1.90989388]
[1728150401871,1.7805,2409.5,2409.4,1.90989388]
[1728150402270,1.49,2409.5,2409.4,0.8249]
[1728150402879,1.49,2409.5,2409.4,1.90989388]
[1728150403070,1.49,2409.5,2409.4,0.8249]
[1728150404775,1.49,2409.5,2409.3,1.49209388]
[1728150404972,3.6107,2409.6,2409.3,1.49209388]
[1728150404973,1.78051,2409.4,2409.3,1.49209388]
[1728150405173,1.78051,2409.4,2409.3,0.4071]
[1728150406980,1.49,2409.4,2409.2,0.4204]
[1728150407174,0.29053,2409.2,2409.0,0.3968]
[1728150407377,0.29053,2409.2,2409.0,0.8195]
[1728150407378,0.29055,2409.1,2409.0,0.8195]
[1728150411977,0.877,2409.1,2409.0,0.8195]
[1728150412679,2.367,2409.1,2409.0,0.8195]
[1728150416289,1.49,2409.1,2409.0,0.8195]
[1728150416586,1.49,2409.4,2409.0,4.9707]
[1728150416781,2.368,2409.4,2409.2,0.29053]
[1728150417087,2.368,2409.4,2409.3,0.4157]
[1728150417281,2.368,2409.4,2409.3,0.8256]
[1728150420293,2.65851,2409.4,2409.3,0.8256]
[1728150420480,2.368,2409.4,2409.3,0.8256]
[1728150423298,1.49,2409.4,2409.3,0.8256]
[1728150423493,1.49,2409.5,2409.3,0.8256]
[1728150423684,5.5758,2409.7,2409.4,0.3972]
[1728150423888,5.5758,2409.7,2409.4,0.6877]
[1728150423889,4.6978,2409.7,2409.4,0.6877]
[1728150424090,4.6978,2409.7,2409.4,0.3972]
[1728150424286,4.6978,2409.7,2409.4,0.68771]
[1728150424487,1.49,2409.7,2409.4,0.68771]
[1728150425090,0.878,2409.8,2409.4,6.0376]
[1728150425295,0.878,2409.8,2409.5,0.29049]
[1728150425691,0.878,2409.8,2409.6,0.407]
[1728150425897,1.16846,2409.8,2409.7,0.4077]
[1728150426195,0.29044,2410.0,2409.7,2.18817]
[1728150426387,2.65842,2410.2,2409.8,0.71275]
[1728150426591,1.49,2410.3,2410.0,1.78043]
[1728150426787,1.49,2410.3,2410.1,0.418]
[1728150426986,1.49,2410.3,2410.2,0.4077]
[1728150427489,1.49,2410.3,2410.2,4.5565]
[1728150427692,1.49,2410.3,2410.2,0.4077]
[1728150427891,1.49,2410.3,2410.2,4.5565]
[1728150429698,1.7804,2410.3,2410.2,0.4077]
[1728150430301,1.7804,2410.3,2410.2,4.5565]
[1728150430992,1.7804,2410.3,2410.2,0.4077]
[1728150431691,1.7804,2410.3,2410.2,0.8087]
[1728150432301,1.7804,2410.3,2410.2,0.401]
[1728150432495,0.29045,2409.9,2409.8,4.29279388]
[1728150432697,0.29045,2409.9,2409.8,3.5956]
[1728150432698,1.78045,2409.9,2409.8,3.5956]
[1728150433300,0.29045,2409.9,2409.8,3.5956]
[1728150436308,0.29045,2409.9,2409.8,0.3878]
[1728150437501,0.29042,2410.2,2409.9,0.29045]
[1728150437901,0.29042,2410.2,2409.9,1.37544388]
[1728150438097,0.29041,2410.3,2409.9,1.37544388]
[1728150438301,0.29041,2410.3,2410.0,5.87701878]